fUST/lending_fUST_20241009
["ID","MTS","AMOUNT","RATE_DAILY","PERIOD"]
[340053191,1728403839045,-400.0,0.00033518,2]
[340053192,1728403839057,-9448.25477216,0.00033519,2]
[340053193,1728403839067,-165.008698,0.00033619,2]
[340053194,1728403839076,-24900.0,0.00033661,2]
[340053195,1728403839085,-454.82336276,0.00033661,30]
[340053196,1728403839095,-250.0,0.00033806,2]
[340053197,1728403839104,-165.008698,0.00033911,2]
[340053198,1728403839114,-165.008698,0.00034203,2]
[340053199,1728403839123,-165.008698,0.00034495,2]
[340053200,1728403839132,-165.008698,0.00034787,2]
[340053201,1728403839142,-165.008698,0.00035079,2]
[340053202,1728403839151,-165.008698,0.00035371,2]
[340053203,1728403839161,-177.647,0.00035873,43]
[340053204,1728403839170,-535.0,0.0003687,2]
[340053205,1728403839179,-3199.72138099,0.00038437,2]
[340053206,1728403839189,-205.57590035,0.00038537,2]
[340053207,1728403839199,-6852.38449389,0.00038548,2]
[340053208,1728403839208,-159.85084525,0.0003867,2]
[340053209,1728403839218,-150.565229,0.000387,2]
[340053210,1728403839227,-159.85084525,0.0003872,2]
[340053211,1728403839237,-681.98,0.00038739,3]
[340053212,1728403839246,-340.99,0.00038739,3]
[340053213,1728403839258,-170.49,0.00038739,3]
[340053214,1728403839269,-511.52,0.00038739,3]
[340053215,1728403839279,-12395.28832274,0.00038749,23]
[340053216,1728403839288,-500.0,0.00038749,15]
[340053217,1728403839298,-500.0,0.00038749,15]
[340053218,1728403839308,-500.0,0.00038749,15]
[340053219,1728403839318,-222.06031486,0.00038749,15]
[340053220,1728403839327,-203.10071184,0.00038749,15]
[340053221,1728403839337,-500.0,0.00038749,15]
[340053222,1728403839348,-500.0,0.00038749,15]
[340053223,1728403839357,-500.0,0.00038749,15]
[340053224,1728403839367,-500.0,0.00038749,15]
[340053225,1728403839376,-500.0,0.00038749,15]
[340053226,1728403839386,-361.3845741,0.00038749,15]
[340053227,1728403839395,-500.0,0.00038749,15]
[340053228,1728403839406,-500.0,0.00038749,15]
[340053229,1728403839415,-500.0,0.00038749,15]
[340053230,1728403839425,-30615.79808978,0.00038749,23]
[340053231,1728403839435,-59980.36502774,0.00038749,5]
[340053232,1728403839475,-12744.26689005,0.00038749,5]
[340053233,1728403839487,-7014.00631611,0.00038749,5]
[340053234,1728403839496,-1000.0,0.0003875,2]
[340053235,1728403839506,-6210.84631628,0.0003875,5]
[340053241,1728403840715,-13985.07551514,0.0003875,5]
[340053242,1728403840730,-45835.78956151,0.0003875,5]
[340053243,1728403840742,-808.88059479,0.0003875,5]
[340053244,1728403840770,-429.68896945,0.0003875,5]
[340053245,1728403840823,-809.96960681,0.0003875,5]
[340053249,1728403843699,-1325.81357195,0.0003875,5]
[340053250,1728403843711,-2864.86094964,0.0003875,5]
[340053251,1728403843752,-1754.8937024,0.0003875,5]
[340053252,1728403843763,-2284.08925962,0.0003875,5]
[340053259,1728403846674,-412.23868,0.00036,2]
[340053260,1728403846686,-192.73297708,0.00038721,2]
[340053261,1728403846730,-626.10867801,0.00038721,2]
[340053271,1728404654552,17104.88,0.0002,2]
[340053281,1728404898621,185.24768265,0.000123,2]
[340053282,1728404905002,153.0,0.00021,120]
[340053283,1728404911781,1236.63098789,0.000134,2]
[340053284,1728404914364,7500.09,0.00036661,7]
[340053285,1728404925019,394.25680818,0.00036661,2]
[340053328,1728405038036,-6289.15848296,0.00023,2]
[340053329,1728405038049,-153.0,0.00024,120]
[340053330,1728405038062,-300.0,0.00026999,2]
[340053331,1728405038074,-300.0,0.00026999,2]
[340053332,1728405038088,-153.0,0.00027,120]
[340053333,1728405038101,-501.6044974,0.00028822,2]
[340053334,1728405038112,-420.0,0.00029189,2]
[340053335,1728405038122,-153.0,0.0003,120]
[340053336,1728405038132,-7444.83266784,0.00033165,2]
[340053337,1728405038199,-14691.194234,0.00033165,2]
[340053357,1728405039913,-2763.97309816,0.00033165,2]
[340053359,1728405039925,-168.906548,0.00033288,2]
[340053361,1728405039936,-168.906548,0.00033535,2]
[340053363,1728405039948,-168.906548,0.00033783,2]
[340053366,1728405039959,-11.99874581,0.00034031,2]
[340053368,1728405039973,-156.90780219,0.00034031,2]
[340053370,1728405039984,-168.906548,0.00034279,2]
[340053371,1728405039996,-168.906548,0.00034527,2]
[340053372,1728405040006,-168.906548,0.00034774,2]
[340053373,1728405040019,-302.84859387,0.00035,2]
[340053374,1728405040032,-168.906548,0.00035022,2]
[340053375,1728405040043,-302.84859387,0.0003535,2]
[340053376,1728405040055,-302.84859387,0.000357,2]
[340053377,1728405040067,-416.508844,0.00036,2]
[340053378,1728405040079,-302.84859387,0.0003605,2]
[340053379,1728405040091,-302.8788636,0.00036332,2]
[340053380,1728405040103,-302.84859387,0.000364,2]
[340053381,1728405040114,-587.15677519,0.00036661,30]
[340053382,1728405040125,-302.8788636,0.00036695,2]
[340053383,1728405040138,-454.27289081,0.0003675,4]
[340053384,1728405040149,-516.8226198,0.0003686,2]
[340053385,1728405040160,-9999.969999,0.00037,20]
[340053386,1728405040183,-454.3182954,0.00037058,4]
[340053387,1728405040200,-363.62461152,0.000371,4]
[340053388,1728405040217,-516.8226198,0.0003736,2]
[340053389,1728405040231,-454.3182954,0.00037422,4]
[340053390,1728405040246,-302.33411744,0.00037785,4]
[340053391,1728405040259,-516.8226198,0.0003786,2]
[340053392,1728405040271,-516.8226198,0.0003836,2]
[340053393,1728405040283,-159.85084525,0.00038679,2]
[340053394,1728405040295,-1000.0,0.0003869,2]
[340053395,1728405040311,-13677.76293413,0.0003871,2]
[340053396,1728405040324,-500.0,0.00038778,15]
[340053397,1728405040337,-1671.9938359,0.00038779,2]
[340053398,1728405040350,-505.4422204,0.00038779,15]
[340053399,1728405040363,-500.0,0.00038779,15]
[340053400,1728405040375,-500.0,0.00038779,15]
[340053401,1728405040386,-500.0,0.00038779,15]
[340053402,1728405040398,-500.0,0.00038779,15]
[340053403,1728405040411,-252.96920187,0.00038779,15]
[340053404,1728405040423,-500.0,0.00038779,15]
[340053405,1728405040435,-500.0,0.00038779,15]
[340053406,1728405040447,-500.0,0.00038779,15]
[340053407,1728405040459,-12588.89398086,0.0003878,5]
[340053423,1728405045908,-1010.672594,0.000364,21]
[340053424,1728405045917,-9575.44972375,0.0003878,5]
[340053545,1728406232099,-433.90707799,0.0002919,2]
[340053546,1728406232156,-2566.09292201,0.0002919,2]
[340053547,1728406232166,-356.63542886,0.00029422,2]
[340053548,1728406232176,-250.0,0.00029522,2]
[340053549,1728406232186,-510.5809996,0.00029639,2]
[340053550,1728406232195,-195.6126058,0.0002983,2]
[340053551,1728406232205,-392.9091061,0.00031407,2]
[340053552,1728406232215,-400.0,0.00031457,2]
[340053553,1728406232224,-400.0,0.00031457,2]
[340053554,1728406232233,-5868.56272663,0.00031458,2]
[340053555,1728406232245,-359.33238366,0.00031458,2]
[340053556,1728406232257,-760.904,0.00031458,2]
[340053557,1728406232270,-1506.46197818,0.00031458,2]
[340053565,1728406238333,-16404.73891153,0.00031458,2]
[340053566,1728406238343,-356.63542884,0.00031877,2]
[340053567,1728406238353,-320.0,0.00033852,2]
[340053568,1728406238363,-356.63542884,0.00034331,2]
[340053569,1728406238372,-168.965,0.00034531,39]
[340053570,1728406238382,-320.0,0.00034602,2]
[340053571,1728406238392,-395.683402,0.00036,2]
[340053572,1728406238402,-1140.47,0.00036661,2]
[340053573,1728406238414,-460.87204508,0.00036661,30]
[340053574,1728406238425,-500.0,0.0003686,2]
[340053575,1728406238435,-500.0,0.0003736,2]
[340053576,1728406238445,-899.683683,0.0003786,2]
[340053577,1728406238455,-1000.0,0.00038,120]
[340053578,1728406238466,-6491.68127903,0.0003859,2]
[340053579,1728406238477,-1169.50166343,0.00038668,2]
[340053580,1728406238487,-29780.1105941,0.00038681,120]
[340053581,1728406238497,-1000.0,0.0003869,2]
[340053582,1728406238507,-443.48,0.00038729,3]
[340053583,1728406238517,-221.74,0.00038729,3]
[340053584,1728406238528,-665.24,0.00038729,3]
[340053585,1728406238538,-353.80955428,0.00038739,15]
[340053586,1728406238548,-500.0,0.00038739,15]
[340053587,1728406238559,-500.0,0.00038739,15]
[340053588,1728406238568,-500.0,0.00038739,15]
[340053589,1728406238577,-500.0,0.00038739,15]
[340053590,1728406238587,-500.0,0.00038739,15]
[340053591,1728406238597,-217.92531607,0.00038739,15]
[340053592,1728406238606,-255.13736493,0.00038739,15]
[340053593,1728406238615,-500.0,0.00038739,15]
[340053594,1728406238624,-500.0,0.00038739,15]
[340053595,1728406238644,-500.0,0.00038739,15]
[340053596,1728406238656,-15077.30699138,0.00038739,23]
[340053597,1728406238667,-151.0,0.00038739,14]
[340053598,1728406238678,-151.0,0.00038739,14]
[340053599,1728406238688,-151.0,0.00038739,14]
[340053600,1728406238698,-151.0,0.00038739,14]
[340053601,1728406238707,-151.0,0.00038739,14]
[340053602,1728406238717,-151.0,0.00038739,14]
[340053603,1728406238727,-151.0,0.00038739,14]
[340053604,1728406238736,-151.0,0.00038739,14]
[340053605,1728406238745,-151.0,0.00038739,14]
[340053606,1728406238756,-151.0,0.00038739,14]
[340053607,1728406238766,-534.204882,0.00038739,14]
[340053608,1728406238775,-534.204882,0.00038739,14]
[340053609,1728406238785,-534.204882,0.00038739,14]
[340053610,1728406238794,-534.204882,0.00038739,14]
[340053611,1728406238804,-10325.43942801,0.00038739,23]
[340053612,1728406238818,-37486.05515208,0.00038739,23]
[340053613,1728406238829,-3191.6325006,0.00038739,5]
[340053614,1728406238844,-4119.10071634,0.00038739,5]
[340053615,1728406238858,-368.66071068,0.00038739,5]
[340053616,1728406238876,-2351.71418294,0.00038739,5]
[340053617,1728406238887,-20367.66071524,0.00038739,5]
[340053618,1728406238897,-42053.76080801,0.0003874,5]
[340053619,1728406238909,-504.61872061,0.0003874,5]
[340053620,1728406238924,-18239.15812298,0.0003874,5]
[340053621,1728406238934,-151.0,0.00038748,14]
[340053622,1728406238943,-151.0,0.00038748,14]
[340053623,1728406238952,-151.0,0.00038748,14]
[340053624,1728406238961,-151.0,0.00038748,14]
[340053625,1728406238971,-534.204882,0.00038748,14]
[340053626,1728406238980,-534.204882,0.00038748,14]
[340053627,1728406238989,-53909.93145312,0.00038749,5]
[340053661,1728406246023,-1373.08025271,0.00038749,5]
[340053662,1728406246131,-417.31201474,0.00038749,5]
[340053783,1728407432088,-500.0,0.00027397,120]
[340053785,1728407432098,-225.88220562,0.00027397,90]
[340053791,1728407432144,-274.11779438,0.00027397,90]
[340053793,1728407432154,-250.0,0.00032544,2]
[340053795,1728407432164,-528.0582228,0.00032619,2]
[340053797,1728407432173,-400.0,0.00032619,2]
[340053799,1728407432183,-400.0,0.00032619,2]
[340053801,1728407432192,-4930.96585652,0.0003262,2]
[340053804,1728407432203,-807.98813339,0.0003262,2]
[340053806,1728407432216,-3366.7308484,0.0003262,2]
[340053837,1728407438359,-1256.38284064,0.0003262,2]
[340053838,1728407438372,-432.85647337,0.0003262,2]
[340053839,1728407438385,-14105.07584768,0.0003262,2]
[340053840,1728407438395,-166.655266,0.00033032,2]
[340053841,1728407438405,-166.655266,0.00033122,2]
[340053842,1728407438415,-166.655266,0.00033213,2]
[340053843,1728407438426,-166.655266,0.00033304,2]
[340053844,1728407438437,-166.655266,0.00033394,2]
[340053845,1728407438447,-166.655266,0.00033485,2]
[340053846,1728407438457,-166.655266,0.00033575,2]
[340053847,1728407438466,-166.655266,0.00033666,2]
[340053848,1728407438475,-166.655266,0.00033757,2]
[340053849,1728407438485,-166.655266,0.00033847,2]
[340053850,1728407438494,-166.655266,0.00033938,2]
[340053851,1728407438503,-166.655266,0.00034028,2]
[340053852,1728407438514,-166.655266,0.00034119,2]
[340053853,1728407438525,-166.655266,0.0003421,2]
[340053854,1728407438535,-166.655266,0.000343,2]
[340053855,1728407438546,-166.655266,0.00034391,2]
[340053856,1728407438556,-382.34964259,0.00034391,30]
[340053857,1728407438567,-166.655266,0.00034481,2]
[340053858,1728407438578,-465.01563489,0.00034507,2]
[340053859,1728407438588,-166.655266,0.00034572,2]
[340053860,1728407438598,-166.655266,0.00034663,2]
[340053861,1728407438608,-806.87701431,0.00034738,2]
[340053862,1728407438622,-14229.39921909,0.00034738,2]
[340053863,1728407438644,-166.655266,0.00034753,2]
[340053864,1728407438655,-560.0,0.00035061,2]
[340053865,1728407438665,-560.0,0.00035881,2]
[340053866,1728407438674,-375.899232,0.00036,2]
[340053867,1728407438684,-200.0,0.000374,120]
[340053868,1728407438693,-347.0,0.00037686,2]
[340053869,1728407438703,-500.0,0.0003787,120]
[340053870,1728407438713,-343.27954331,0.0003787,120]
[340053871,1728407438726,-156.72045669,0.0003787,120]
[340053872,1728407438736,-500.0,0.0003787,120]
[340053873,1728407438746,-500.0,0.0003787,120]
[340053874,1728407438756,-500.0,0.0003787,120]
[340053875,1728407438766,-500.0,0.0003787,120]
[340053876,1728407438776,-500.0,0.0003787,120]
[340053877,1728407438790,-500.0,0.0003787,120]
[340053878,1728407438800,-500.0,0.0003787,120]
[340053879,1728407438811,-500.0,0.0003787,120]
[340053880,1728407438821,-500.0,0.0003787,120]
[340053881,1728407438833,-500.0,0.0003787,120]
[340053882,1728407438844,-500.0,0.0003787,120]
[340053883,1728407438855,-500.0,0.0003787,120]
[340053884,1728407438867,-500.0,0.0003787,120]
[340053885,1728407439026,-500.0,0.0003787,120]
[340053886,1728407439037,-116.83325309,0.0003787,120]
[340053891,1728407440311,-383.16674691,0.0003787,120]
[340053892,1728407440323,-69.06325309,0.0003787,120]
[340053893,1728407440335,-430.93674691,0.0003787,120]
[340053894,1728407440345,-52.04175739,0.0003787,120]
[340053897,1728407443440,-447.95824261,0.0003787,120]
[340053898,1728407443450,-447.56534203,0.0003787,120]
[340053899,1728407443462,-52.43465797,0.0003787,120]
[340053900,1728407443473,-270.32,0.0003787,120]
[340053901,1728407443482,-500.0,0.0003787,120]
[340053902,1728407443491,-500.0,0.0003787,120]
[340053903,1728407443500,-302.23,0.0003787,120]
[340053904,1728407443510,-500.0,0.0003787,120]
[340053905,1728407443519,-306.21534203,0.0003865,2]
[340053913,1728407446370,-514.07,0.0003865,2]
[340053914,1728407446382,-179.71465797,0.0003865,2]
[340053915,1728407446391,-171.87628974,0.0003873,3]
[340053933,1728408346236,-510.0,0.0003875,90]
[340053941,1728408512768,2500.0,0.00036724,7]
[340053942,1728408521506,3686.84582671,0.00018,10]
[340053969,1728408632482,-1441.168694,0.00023,2]
[340053970,1728408632492,-3000.0,0.00030852,2]
[340053971,1728408632502,-227.07944057,0.00032668,2]
[340053972,1728408632512,-400.0,0.00032768,2]
[340053973,1728408632521,-400.0,0.00032768,2]
[340053974,1728408632531,-9778.99941957,0.00032769,2]
[340053980,1728408638606,-480.02913384,0.00032769,2]
[340053981,1728408638620,-2382.67585133,0.00032769,2]
[340053982,1728408638667,-12258.29559526,0.00032769,2]
[340053983,1728408638676,-304.96750342,0.00032769,30]
[340053984,1728408638685,-3784.74286768,0.000329,2]
[340053985,1728408638695,-6728.66177473,0.00033,7]
[340053986,1728408638786,-19552.27796045,0.00033,7]
[340053987,1728408638795,-320.0,0.00035216,2]
[340053988,1728408638805,-210.0,0.0003589,2]
[340053989,1728408638814,-210.0,0.00036,2]
[340053990,1728408638824,-357.10427,0.00036,2]
[340053991,1728408638834,-177.0,0.00036,2]
[340053992,1728408638846,-560.0,0.00036045,2]
[340053993,1728408638856,-210.0,0.00037397,2]
[340053994,1728408638867,-500.0,0.000378,30]
[340053995,1728408638877,-3784.74286768,0.00038114,2]
[340053996,1728408638886,-193.09299392,0.00038638,15]
[340053997,1728408638896,-500.0,0.00038638,15]
[340053998,1728408638906,-550.0450622,0.00038638,15]
[340053999,1728408638915,-14829.63897006,0.00038639,23]
[340054000,1728408638926,-21963.13293,0.00038639,4]
[340054001,1728408638935,-1000.0,0.0003864,2]
[340054002,1728408638945,-1164.52387377,0.0003865,2]
[340054003,1728408638956,-153.278941,0.000387,2]
[340054004,1728408638967,-445.52,0.0003871,3]
[340054005,1728408639087,-222.76,0.0003871,3]
[340054006,1728408639097,-668.32,0.0003871,3]
[340054007,1728408639107,-500.0,0.00038719,15]
[340054008,1728408639118,-247.666688,0.00038719,15]
[340054009,1728408639127,-500.0,0.00038719,15]
[340054010,1728408639136,-388.61820962,0.00038719,15]
[340054011,1728408639146,-502.66638698,0.00038719,15]
[340054012,1728408639156,-500.0,0.00038719,15]
[340054013,1728408639169,-500.0,0.00038719,15]
[340054014,1728408639178,-500.0,0.00038719,15]
[340054015,1728408639187,-36955.85768709,0.0003872,23]
[340054016,1728408639196,-91257.3894857,0.0003872,5]
[340054017,1728408639207,-11568.1897398,0.0003872,5]
[340054018,1728408639216,-151.0,0.0003873,14]
[340054019,1728408639225,-151.0,0.0003873,14]
[340054020,1728408639234,-151.0,0.0003873,14]
[340054021,1728408639245,-151.0,0.0003873,14]
[340054022,1728408639255,-151.356191,0.0003873,14]
[340054023,1728408639264,-487.138263,0.0003873,14]
[340054024,1728408639273,-487.138263,0.0003873,14]
[340054025,1728408639283,-151.0,0.0003873,14]
[340054026,1728408639292,-151.0,0.0003873,14]
[340054027,1728408639301,-151.0,0.0003873,14]
[340054028,1728408639310,-151.0,0.0003873,14]
[340054029,1728408639319,-301.387993,0.0003873,14]
[340054030,1728408639329,-859.183464,0.0003873,14]
[340054031,1728408639338,-859.183464,0.0003873,14]
[340054032,1728408639347,-174.755798,0.0003873,14]
[340054033,1728408639356,-174.755798,0.0003873,14]
[340054034,1728408639367,-174.755798,0.0003873,14]
[340054035,1728408639376,-174.755798,0.0003873,14]
[340054036,1728408639385,-1570.616362,0.0003873,14]
[340054037,1728408639394,-1570.616362,0.0003873,14]
[340054038,1728408639403,-389.043418,0.0003873,14]
[340054039,1728408639414,-389.043418,0.0003873,14]
[340054040,1728408639425,-389.043418,0.0003873,14]
[340054041,1728408639436,-389.043418,0.0003873,14]
[340054042,1728408639447,-919.300445,0.0003873,14]
[340054043,1728408639456,-919.300445,0.0003873,14]
[340054044,1728408639466,-919.300445,0.0003873,14]
[340054045,1728408639477,-919.300445,0.0003873,14]
[340054046,1728408639488,-151.0,0.0003873,14]
[340054047,1728408639498,-151.0,0.0003873,14]
[340054048,1728408639507,-151.0,0.0003873,14]
[340054049,1728408639518,-151.0,0.0003873,14]
[340054050,1728408639529,-151.0,0.0003873,14]
[340054051,1728408639538,-151.0,0.0003873,14]
[340054052,1728408639548,-151.0,0.0003873,14]
[340054053,1728408639557,-160.54343,0.0003873,14]
[340054054,1728408639567,-299.084067,0.0003873,14]
[340054055,1728408639577,-299.084067,0.0003873,14]
[340054056,1728408639586,-151.0,0.0003873,14]
[340054057,1728408639595,-151.0,0.0003873,14]
[340054058,1728408639603,-151.0,0.0003873,14]
[340054059,1728408639613,-151.0,0.0003873,14]
[340054060,1728408639622,-151.0,0.0003873,14]
[340054061,1728408639631,-151.0,0.0003873,14]
[340054062,1728408639641,-647.83416,0.0003873,14]
[340054063,1728408639652,-647.83416,0.0003873,14]
[340054064,1728408639662,-647.83416,0.0003873,14]
[340054065,1728408639671,-647.83416,0.0003873,14]
[340054066,1728408639680,-151.0,0.0003873,14]
[340054067,1728408639689,-151.0,0.0003873,14]
[340054068,1728408639698,-607.713841,0.0003873,14]
[340054069,1728408639708,-151.0,0.0003873,14]
[340054070,1728408639717,-607.713841,0.0003873,14]
[340054071,1728408639727,-151.0,0.0003873,14]
[340054072,1728408639736,-253.413768,0.0003873,14]
[340054073,1728408639746,-253.413768,0.0003873,14]
[340054074,1728408639755,-345.733908,0.0003873,14]
[340054075,1728408639764,-345.733908,0.0003873,14]
[340054076,1728408639773,-151.0,0.0003873,14]
[340054077,1728408639781,-151.0,0.0003873,14]
[340054078,1728408639791,-151.0,0.0003873,14]
[340054079,1728408639800,-30419.1298286,0.0003873,5]
[340054080,1728408639809,-151.0,0.0003873,14]
[340054081,1728408639818,-151.0,0.0003873,14]
[340054082,1728408639827,-151.0,0.0003873,14]
[340054083,1728408639836,-3856.06324661,0.0003873,5]
[340054084,1728408639846,-151.0,0.0003873,14]
[340054085,1728408639856,-399.795634,0.0003873,14]
[340054087,1728408639866,-399.795634,0.0003873,14]
[340054088,1728408639876,-399.795634,0.0003873,14]
[340054089,1728408639885,-399.795634,0.0003873,14]
[340054090,1728408639894,-399.795634,0.0003873,14]
[340054091,1728408639904,-399.795634,0.0003873,14]
[340054092,1728408639913,-151.0,0.0003873,14]
[340054093,1728408639923,-151.0,0.0003873,14]
[340054096,1728408639932,-151.0,0.0003873,14]
[340054097,1728408639941,-151.0,0.0003873,14]
[340054099,1728408639951,-151.0,0.0003873,14]
[340054100,1728408639961,-151.0,0.0003873,14]
[340054101,1728408639971,-151.0,0.0003873,14]
[340054102,1728408639980,-151.0,0.0003873,14]
[340054103,1728408639989,-152.306952,0.0003873,14]
[340054104,1728408639999,-151.0,0.0003873,14]
[340054105,1728408640010,-151.0,0.0003873,14]
[340054106,1728408640020,-263.71728,0.0003873,14]
[340054107,1728408640029,-507.271212,0.0003873,14]
[340054108,1728408640040,-507.271212,0.0003873,14]
[340054109,1728408640051,-507.271212,0.0003873,14]
[340054110,1728408640060,-507.271212,0.0003873,14]
[340054111,1728408640070,-507.271212,0.0003873,14]
[340054112,1728408640079,-507.271212,0.0003873,14]
[340054113,1728408640091,-507.271212,0.0003873,14]
[340054114,1728408640104,-507.271212,0.0003873,14]
[340054115,1728408640119,-151.0,0.0003873,14]
[340054116,1728408640134,-151.0,0.0003873,14]
[340054117,1728408640148,-151.0,0.0003873,14]
[340054118,1728408640160,-3000.0,0.0003873,90]
[340054119,1728408640173,-3000.0,0.0003873,90]
[340054120,1728408640186,-237.681306,0.0003873,14]
[340054121,1728408640199,-3000.0,0.0003873,90]
[340054122,1728408640212,-640.11692,0.0003873,90]
[340054123,1728408640225,-8948.12524626,0.0003873,5]
[340054124,1728408640244,-16080.0,0.0003873,5]
[340054125,1728408640262,-674.80666933,0.0003873,5]
[340054126,1728408640390,-151.0,0.0003873,14]
[340054127,1728408640403,-27570.78286865,0.0003873,5]
[340054128,1728408640419,-535.5469514,0.0003873,5]
[340054129,1728408640433,-2006.6392084,0.0003873,5]
[340054130,1728408640446,-46223.19408239,0.0003873,5]
[340054131,1728408640459,-1575.86391492,0.0003873,5]
[340054132,1728408640478,-151.0,0.0003873,14]
[340054133,1728408640490,-1117.41937026,0.0003873,5]
[340054134,1728408640505,-775.19786568,0.0003873,5]
[340054135,1728408640520,-5899.48473372,0.0003873,5]
[340054149,1728408643526,-151.0,0.0003873,14]
[340054150,1728408643537,-151.0,0.0003873,14]
[340054151,1728408643548,-5510.1044671,0.0003873,5]
[340054152,1728408643567,-1243.5467963,0.0003873,5]
[340054153,1728408643584,-291.2784889,0.0003873,5]
[340054155,1728408643597,-471.12000005,0.0003873,5]
[340054158,1728408643611,-1808.77320239,0.0003873,5]
[340054164,1728408646382,-284.508318,0.0003873,14]
[340054165,1728408646394,-944.63544825,0.0003873,5]
[340054166,1728408646407,-3756.40407517,0.0003873,5]
[340054167,1728408646425,-453.0,0.0003873,5]
[340054172,1728408646482,-15070.91215793,0.0003873,5]
[340054174,1728408646492,-151.0,0.0003874,14]
[340054176,1728408646502,-151.0,0.0003874,14]
[340054177,1728408646640,-151.0,0.0003874,14]
[340054178,1728408646655,-151.0,0.0003874,3]
[340054179,1728408646667,-151.0,0.0003874,14]
[340054180,1728408646677,-371.008775,0.0003874,14]
[340054181,1728408646688,-371.008775,0.0003874,14]
[340054182,1728408646697,-151.0,0.0003874,14]
[340054183,1728408646706,-151.0,0.0003874,14]
[340054184,1728408646716,-152.300753,0.0003874,7]
[340054185,1728408646726,-151.0,0.0003874,2]
[340054186,1728408646735,-241.299119,0.0003874,14]
[340054187,1728408646746,-241.299119,0.0003874,14]
[340054188,1728408646756,-151.0,0.0003874,14]
[340054189,1728408646766,-151.0,0.0003874,14]
[340054190,1728408646776,-1169.601323,0.0003874,14]
[340054191,1728408646789,-151.0,0.0003874,14]
[340054192,1728408646798,-151.0,0.0003874,14]
[340054193,1728408646808,-487.138263,0.0003874,14]
[340054194,1728408646817,-487.138263,0.0003874,14]
[340054195,1728408646827,-288.403212,0.0003874,14]
[340054196,1728408646837,-151.0,0.0003874,14]
[340054197,1728408646847,-151.0,0.0003874,14]
[340054198,1728408646856,-151.0,0.0003874,14]
[340054199,1728408646866,-859.183464,0.0003874,14]
[340054200,1728408646881,-859.183464,0.0003874,14]
[340054201,1728408646892,-174.755798,0.0003874,14]
[340054202,1728408646902,-174.755798,0.0003874,14]
[340054203,1728408646912,-174.755798,0.0003874,14]
[340054204,1728408646921,-174.755798,0.0003874,14]
[340054205,1728408646930,-174.755798,0.0003874,14]
[340054206,1728408646939,-174.755798,0.0003874,14]
[340054207,1728408646950,-968.26684427,0.0003874,14]
[340054235,1728409832516,-400.0,0.00032895,2]
[340054236,1728409832526,-300.0,0.00032895,2]
[340054237,1728409832535,-3732.92883178,0.00032896,2]
[340054238,1728409832547,-3863.43682798,0.00032896,2]
[340054239,1728409832559,-3064.95084288,0.00032896,2]
[340054240,1728409832571,-781.79114636,0.00032896,2]
[340054241,1728409832583,-8400.24026467,0.00032896,2]
[340054242,1728409832595,-2965.92597572,0.00032896,2]
[340054255,1728409840660,-2090.72611061,0.00032896,2]
[340054256,1728409840671,-1095.0861932,0.00033319,2]
[340054257,1728409840682,-465.00125997,0.00034544,2]
[340054258,1728409840695,-344.927582,0.00036,2]
[340054259,1728409840707,-7069.19095078,0.00038515,2]
[340054260,1728409840718,-261.04389604,0.00038515,60]
[340054261,1728409840728,-3046.2736855,0.00038639,2]
[340054262,1728409840738,-150.01,0.00038739,2]
[340054263,1728409840748,-285.91217405,0.00038739,2]
[340054264,1728409840759,-1000.0,0.00038739,4]
[340054265,1728409840771,-151.0,0.0003874,14]
[340054266,1728409840783,-151.0,0.0003874,14]
[340054267,1728409840792,-151.0,0.0003874,14]